Cogmind - Beta 14 @@@ ROGUE MODE // 2024.11.28 @ 22:52:47 Player: Amberulez Result: Destroyed by G-34 Mercenary with Small Laser Performance ------------- Evolutions (1) 500 Regions Visited (5) 1000 Robots Destroyed (77) 385 Value Destroyed (1817) 1817 Prototype IDs (7) 140 Alien Tech Used (0) 0 Bonus (210) 210 TOTAL SCORE: 4052 Bonus ------- High Alert Combat Kills 53 Follower Combat Kills 238 Entered Garrisons 200 Friendly Fire -281 Cogmind --------- Core Integrity 0/400 Matter 284/300 Energy 226/240 System Corruption 3% Temperature Hot (277) Movement Hovering (66) Location -9/Garrison Parts ------- > --- POWER (1) -------- Nuclear Core (fused) > --- PROPULSION (2) --- Improved Hover Unit Combat Airjet (fused) > --- UTILITY (4) ------ ECM Suite Core Shielding Core Shielding > --- WEAPON (2) ------- Advanced Beam Cannon Katana > --- INVENTORY (5) ---- Cooled Ion Engine Improved Hover Unit Improved Hover Unit Structural Scanner Advanced Beam Cannon Peak State ------------ > --- POWER ------------ Nuclear Core > --- PROPULSION ------- Improved Hover Unit Combat Airjet > --- UTILITY ---------- Heat Sink ECM Suite Core Shielding Core Shielding > --- WEAPON ----------- Advanced Beam Cannon Advanced Beam Cannon > --- INVENTORY -------- Cooled Ion Engine Improved Hover Unit Improved Hover Unit Improved Hover Unit Mace [Rating: 21] Favorites ----------- Power Ion Engine Engine Ion Engine Power Core Nuclear Core Propulsion Light Treads Treads Light Treads Leg Carbon-fiber Leg Wheel Wheel Hover Unit Improved Hover Unit Utility Small Storage Unit Device Improved Terrain Scanner Storage Small Storage Unit Protection Core Shielding Weapon Assault Rifle Energy Gun EM Shotgun Energy Cannon Advanced Beam Cannon Ballistic Gun Assault Rifle Launcher Mini Grenade Launcher Special Weapon Welding Torch Slashing Weapon Katana Build | -11 -10 -10 -9 -9 -9 ------- Run | Yrd Mat Min Mat Sto Gar Slots Evolved 2 | . . . 2 . . Power . | . . . . . . Propulsion . | . . . . . . Utility 2 | . . . 2 . . Weapon . | . . . . . . Parts Attached 76 | 11 4 12 24 17 8 Power 10 | 1 . 2 3 4 . Engine 8 | 1 . 2 2 3 . Core 2 | . . . 1 1 . Reactor . | . . . . . . Propulsion 18 | 4 . 4 3 4 3 Treads 8 | 2 . . 2 4 . Leg 3 | . . 2 1 . . Wheel 4 | 2 . 2 . . . Hover 3 | . . . . . 3 Flight . | . . . . . . Utility 16 | 2 . . 8 4 2 Device 4 | 1 . . 1 1 1 Storage 5 | 1 . . 3 1 . Processor . | . . . . . . Hackware . | . . . . . . Protection 7 | . . . 4 2 1 Artifact . | . . . . . . Weapon 32 | 4 4 6 10 5 3 Energy Gun 11 | 1 . 3 7 . . Energy Cannon 9 | . . . 2 5 2 Ballistic Gun 7 | 3 2 1 1 . . Ballistic Cannon . | . . . . . . Launcher 3 | . 2 1 . . . Special Weapon 1 | . . 1 . . . Impact Weapon . | . . . . . . Slashing Weapon 1 | . . . . . 1 Piercing Weapon . | . . . . . . Special Melee Weapon . | . . . . . . Unidentified Prototypes 4 | . . . 2 2 . Parts Lost 16 | . 1 5 8 2 . Power 2 | . . 1 1 . . Propulsion 4 | . . 2 2 . . Utility 3 | . . . 2 1 . Weapon 7 | . 1 2 3 1 . Highest Loss Streak 3 | . 1 3 2 1 . To Critical Strikes . | . . . . . . Average Slot Usage (%) 91 | . 99 78 91 98 88 Engine 7 | . 14 5 7 5 . Core 3 | . . . 2 5 11 Treads 11 | . . . 13 20 . Leg 3 | . . 12 2 . . Wheel 4 | . 28 10 . . . Device 9 | . 14 14 8 6 11 Storage 17 | . 14 14 22 16 . Protection 10 | . . . 11 21 21 Energy Gun 9 | . . 8 16 1 . Energy Cannon 7 | . . . 3 20 22 Ballistic Gun 2 | . 18 2 . . . Launcher 2 | . 8 7 . . . Peak Build Rating 21 | 10 11 20 18 20 21 Average Rating 9 | 6 10 12 14 18 19 On Entrance 10 | . 10 11 11 14 19 Naked Turns . | . . . . . . Heaviest Build 98 | 15 15 16 42 98 20 Greatest Support 46 | 40 20 35 40 46 19 Greatest Overweight (x) 5 | . . 1 5 4 1 Average Overweight (x) . | . . . . . . Largest Inventory Capacity 25 | 8 8 8 15 25 25 Average Capacity 9 | 7 8 8 13 18 5 Most Carried 16 | 8 8 8 15 15 16 Average Carried 7 | 6 7 7 12 14 5 Final Capacity 25 | 8 8 8 15 25 5 Final Carried 15 | 7 7 6 15 15 5 Class Distribution -------------------- 89% | Mutant 8% | Scavenger-Mutant Dominant Class ---------------- Mutant | -10/Materials Mutant | -10/Mines Mutant | -9/Materials Mutant | -9/Storage Mutant | -9/Garrison Resources | -11 -10 -10 -9 -9 -9 ----------- Run | Yrd Mat Min Mat Sto Gar Matter Collected 1515 | 349 93 470 252 281 70 Remotely . | . . . . . . Salvage Created 2465 | 101 203 161 1134 820 46 Parts 162 | 8 23 8 72 46 5 Haulers Intercepted 7 | . 1 . 3 3 . Recyclers Shooed 2 | . . . 1 1 . Parts Field Recycled . | . . . . . . Retrieved Matter . | . . . . . . Parts Self-Destructed . | . . . . . . Prevented . | . . . . . . Kills | -11 -10 -10 -9 -9 -9 ------- Run | Yrd Mat Min Mat Sto Gar Combat Hostiles Destroyed 73 | 1 10 19 26 16 1 Melee 1 | . . . . 1 . Guns 32 | 1 2 5 24 . . Cannons 18 | . . . 2 15 1 AOE 22 | . 8 14 . . . Classes Destroyed 13 | 3 4 2 3 . 1 Worker 6 | 2 2 . 1 1 . Tunneler 1 | . 1 . . . . Hauler 7 | . 1 . 3 3 . Recycler 1 | 1 . . . . . Watcher 1 | . . . 1 . . Swarmer 21 | . 6 5 7 3 . Grunt 22 | . 4 . 11 7 . Brawler 1 | . . . 1 . . Duelist 1 | . . . . . 1 Sentry 13 | . . . 7 6 . Demolisher 1 | 1 . . . . . Zionite 1 | . . 1 . . . Assembled 14 | . . 14 . . . Thug 1 | . . 1 . . . Best Kill Streak 11 | 1 5 11 4 11 1 Combat Bots Only 11 | 1 3 11 4 10 1 Max Kills in Single Turn 3 | 1 2 3 2 1 1 Gunslinging . | . . . . . . Exploded 3 | . 2 3 . . . Melee 1 | . . . . 1 . Uniques/NPCs Destroyed . | . . . . . . Combat | -11 -10 -10 -9 -9 -9 -------- Run | Yrd Mat Min Mat Sto Gar Hostile Shots Fired 252 | 7 12 29 128 67 9 Missed 65 | . 1 7 35 17 5 Damage Taken 2815 | 274 140 474 1159 709 59 Core 531 | 36 8 83 227 138 39 Absorbed by Shields 9 | . . . . . 9 Redirected to Shielding 32 | . . . 9 14 9 Core Remaining (%) 67 | 85 . 49 . . . Volleys Fired 165 | 7 15 25 78 34 6 Largest 2 | 2 2 2 2 2 2 Hottest 136 | 40 50 105 121 136 136 Shots Fired 301 | 14 24 40 139 72 12 Gun 177 | 14 16 27 119 1 . Cannon 94 | . . . 11 71 12 Launcher 21 | . 8 13 . . . Special 9 | . . . 9 . . Kinetic 39 | 14 16 4 5 . . Thermal 180 | . . 23 76 69 12 Explosive 21 | . 8 13 . . . Electromagnetic 61 | . . . 58 3 . Robot Hit Streak 23 | 7 9 9 23 11 12 Robot Miss Streak 7 | 3 6 7 4 3 1 Penetration Max . | . . . . . . Secondary Targets 1 | . . . 1 . . Max Gunslinging Chain 1 | . . . 1 . . Shots Hit Robots 198 | 8 11 19 114 38 8 Core Hits 162 | 5 18 33 83 21 2 Critical Kills . | . . . . . . Critical Parts Destroyed . | . . . . . . Critical Strikes 5 | . . 1 4 . . Burn 5 | . . 1 4 . . Melee Attacks . | . . . . . . Impact . | . . . . . . Slashing . | . . . . . . Piercing . | . . . . . . Sneak Attacks . | . . . . . . Combat Hostiles . | . . . . . . Follow-up Attacks . | . . . . . . Damage Inflicted 4527 | 111 799 1061 1556 836 164 Guns 1893 | 101 121 245 1426 . . Cannons 1084 | . . . 106 814 164 Explosions 1483 | . 678 805 . . . Melee . | . . . . . . Ramming 58 | 10 . 11 15 22 . Kinetic 310 | 101 121 47 41 . . Thermal 1944 | . . 198 816 766 164 Explosive 1483 | . 678 805 . . . Electromagnetic 732 | . . . 684 48 . Impact . | . . . . . . Slashing . | . . . . . . Piercing . | . . . . . . Highest Corruption 3 | . . 2 . 3 3 Average Corruption 2 | . . 2 . 2 3 Corruption Purged . | . . . . . . Corruption Blocked . | . . . . . . Effects 46 | . . 17 . 26 3 Message Errors 9 | . . 3 . 5 1 Matter Fused 11 | . . 5 . 5 1 Heat Flow Errors 2 | . . . . 2 . Energy Discharges 6 | . . 1 . 5 . Parts Rejected 1 | . . . . 1 . Parts Fused 2 | . . . . 1 1 Data Loss (minor) 4 | . . 3 . 1 . Data Loss (major) 6 | . . 5 . 1 . Misfires 4 | . . . . 4 . Alerts 1 | . . . . 1 . Overload Shots . | . . . . . . Overflow Damage 104 | . 49 44 . 11 . Projectiles 11 | . . . . 11 . Explosions 93 | . 49 44 . . . Melee . | . . . . . . Knockbacks . | . . . . . . Impact . | . . . . . . Kinetic . | . . . . . . Secondary . | . . . . . . Self-Inflicted Damage 70 | 2 33 35 . . . Shots 4 | . 1 3 . . . Rammed 12 | 3 . 1 3 5 . Targets Rammed 16 | 3 . 3 4 6 . Kicked 3 | . . 2 1 . . Crushed 1 | . . . . 1 . Highest Temperature 533 | . . 192 330 533 375 Average Temperature 95 | . . 63 66 120 188 Received Heat Transfer 819 | . 36 . 480 285 18 Effects 8 | . . . . 8 . Interference 2 | . . . . 2 . Matter Decay 1 | . . . . 1 . Short Circuit 3 | . . . . 3 . Damage (major) 1 | . . . . 1 . Damage (core) 1 | . . . . 1 . Siege Activations . | . . . . . . Robots Corrupted . | . . . . . . Combat Hostiles . | . . . . . . Parts Fried 2 | . . . 2 . . Impact Corruptions . | . . . . . . Robots Melted . | . . . . . . Combat Hostiles . | . . . . . . Parts Melted 8 | . . 2 6 . . Heat Transferred 4228 | . . 481 2119 1332 296 Parts Sabotaged . | . . . . . . Parts Stolen . | . . . . . . Parts Stripped . | . . . . . . Power Chain Reactions . | . . . . . . Alert | -11 -10 -10 -9 -9 -9 ------- Run | Yrd Mat Min Mat Sto Gar Peak Influence 548 | 35 288 273 310 548 318 Initial 283 | . 22 70 . 130 283 Average 63 | 4 123 108 153 313 300 Maximum Alert Level 2 | . 1 1 1 2 1 Low Security (%) 87 | 100 73 82 65 38 . Level 1 9 | . 26 17 34 18 100 Level 2 3 | . . . . 42 . Level 3 . | . . . . . . Level 4 . | . . . . . . Level 5 . | . . . . . . High Security . | . . . . . . Max Security . | . . . . . . Squads Dispatched 11 | . 1 . 4 6 . Investigation 3 | . 1 . 2 . . Extermination . | . . . . . . Reinforcement 4 | . . . 2 2 . Assault . | . . . . . . Garrison 4 | . . . . 4 . Intercept . | . . . . . . Searches Triggered . | . . . . . . Construction Impeded . | . . . . . . Haulers Reinforced . | . . . . . . Active Scanning Responses . | . . . . . . Cargo Convoy Interrupts . | . . . . . . Stealth | -11 -10 -10 -9 -9 -9 --------- Run | Yrd Mat Min Mat Sto Gar Distress Signals 9 | . . 1 3 5 . Communications Jammed . | . . . . . . Distress Signals . | . . . . . . Times Spotted 123 | 1 11 19 43 37 12 Peak Tracking Total 10 | 1 3 5 6 10 8 Tactical Retreats 6 | . . . 2 3 1 Traps | -11 -10 -10 -9 -9 -9 ------- Run | Yrd Mat Min Mat Sto Gar Traps Triggered 4 | . . . . 1 3 Indirectly . | . . . . . . Trap Hack Attempts . | . . . . . . Triggered . | . . . . . . Disarmed . | . . . . . . Reprogrammed . | . . . . . . Reused . | . . . . . . Traps Extracted . | . . . . . . Installed . | . . . . . . Triggered . | . . . . . . Machines | -11 -10 -10 -9 -9 -9 ---------- Run | Yrd Mat Min Mat Sto Gar Machines Disabled 7 | . 3 . 1 3 . Max in Single Turn 2 | . 2 . 1 1 . Machines Repaired . | . . . . . . Machines Dismantled . | . . . . . . Machines Sabotaged . | . . . . . . Overloaded Fab Kills . | . . . . . . Hacking | -11 -10 -10 -9 -9 -9 --------- Run | Yrd Mat Min Mat Sto Gar Machines Accessed 13 | . 3 . 4 6 . Terminals 12 | . 3 . 4 5 . Fabricators . | . . . . . . Repair Stations . | . . . . . . Recycling Units . | . . . . . . Scanalyzers . | . . . . . . Garrison Access 1 | . . . . 1 . Total Hacks 29 | . 9 . 13 7 . Successful 14 | . 6 . 3 5 . Failed 15 | . 3 . 10 2 . Catastrophic 3 | . 1 . 1 1 . Database Lockouts . | . . . . . . Manual 11 | . 2 . 8 1 . Terminals 28 | . 9 . 13 6 . Fabricators . | . . . . . . Repair Stations . | . . . . . . Recycling Units . | . . . . . . Scanalyzers . | . . . . . . Garrison Access 1 | . . . . 1 . Terminal Hacks 13 | . 6 . 3 4 . Record 1 | . . . . 1 . Robot Analysis 4 | . 3 . 1 . . Prototype ID Bank 2 | . 1 . 1 . . Open Door 1 | . . . . 1 . Branch Access Points 3 | . 1 . 1 1 . Locate Traps 1 | . 1 . . . . Zone Layout 1 | . . . . 1 . Fabricator Hacks . | . . . . . . Repair Station Hacks . | . . . . . . Recycling Unit Hacks . | . . . . . . Scanalyzer . | . . . . . . Garrison Access Hacks 1 | . . . . 1 . Unlock Access 1 | . . . . 1 . Unauthorized Hacks . | . . . . . . Terminals . | . . . . . . Fabricators . | . . . . . . Repair Stations . | . . . . . . Recycling Units . | . . . . . . Scanalyzers . | . . . . . . Garrison Access . | . . . . . . Data Cores Recovered . | . . . . . . Used . | . . . . . . Hacking Detections 10 | . 3 . 3 4 . Full Trace Events 5 | . 2 . 3 . . Feedback Events . | . . . . . . Feedback Blocked . | . . . . . . Robot Schematics Acquired . | . . . . . . Robots Built . | . . . . . . Authchips . | . . . . . . Time . | . . . . . . Total Robot Build Rating . | . . . . . . Part Schematics Acquired . | . . . . . . Parts Built . | . . . . . . Authchips . | . . . . . . Time . | . . . . . . Total Part Build Rating . | . . . . . . Parts Repaired . | . . . . . . Time . | . . . . . . Parts Recycled . | . . . . . . Recycled Matter . | . . . . . . Retrieved Matter . | . . . . . . Retrieved Components . | . . . . . . Parts Scanalyzed . | . . . . . . Part Schematics Acquired . | . . . . . . Parts Damaged . | . . . . . . Bothacking | -11 -10 -10 -9 -9 -9 ------------ Run | Yrd Mat Min Mat Sto Gar Used RIF Installer . | . . . . . . Robots Hacked . | . . . . . . Non-combat . | . . . . . . Combat . | . . . . . . Robot Hacks Applied . | . . . . . . Relay Couplers Released . | . . . . . . Fabnet Peak Effective % . | . . . . . . Robots Rewired . | . . . . . . Allies Hacked . | . . . . . . Hacks Repelled . | . . . . . . Allies | -11 -10 -10 -9 -9 -9 -------- Run | Yrd Mat Min Mat Sto Gar Total Allies 12 | . . 2 . 10 . Largest Group 10 | . . 2 . 10 . Highest-Rated Group 88 | . . 42 . 88 . Highest-Rated Ally 31 | . . 31 . 16 . Total Orders . | . . . . . . Ally Attacks 60 | . . 3 . 57 . Total Damage 456 | . . 21 . 435 . Kills 9 | . . 1 . 8 . Allies Corrupted . | . . . . . . Allies Melted . | . . . . . . Intel | -11 -10 -10 -9 -9 -9 ------- Run | Yrd Mat Min Mat Sto Gar Robot Analysis Total 4 | . 3 . 1 . . Derelict Logs Recovered 2 | . . 2 . . . Drone Launches . | . . . . . . Drone Recoveries . | . . . . . . Exploration | -11 -10 -10 -9 -9 -9 ------------- Run | Yrd Mat Min Mat Sto Gar Turns Passed 16787 | 11334 511 1024 2368 1422 128 Spaces Moved 4963 | 1994 472 900 967 561 69 Core 18 | 3 . . 15 . . Treads 2737 | 1398 . . 778 561 . Legs 655 | . . 481 174 . . Wheels 1484 | 593 472 419 . . . Hover 69 | . . . . . 69 Flight . | . . . . . . Fastest Speed 50 | 50 80 80 160 160 56 Average Speed 147 | 136 80 103 211 214 78 Slowest Speed 480 | 160 80 130 330 480 131 Overloaded Moves . | . . . . . . Propulsion Burnouts . | . . . . . . Robots Hopped . | . . . . . . Cave-ins Triggered . | . . . . . . Exploration Rate (%) 63 | 101 54 84 67 56 18 Regions Visited 5 Branch Regions 2 Pre-discovered Areas 2 | . . 2 . . . Known Exits Taken 3 | . 1 . 1 1 . Unknown Exits Taken 2 | 1 . 1 . . . Scrap Searched 2 | . . 2 . . . Spaces Dug . | . . . . . . Terrain Destroyed 206 | . 79 127 . . . Melee . | . . . . . . Projectile 5 | . . 5 . . . AOE 201 | . 79 122 . . . Terrain Rammed . | . . . . . . Walls Destroyed . | . . . . . . Machines Disabled . | . . . . . . Actions | -11 -10 -10 -9 -9 -9 --------- Run | Yrd Mat Min Mat Sto Gar Total 14112 | 10596 580 947 1144 711 134 Wait 8772 | 8568 87 2 44 70 1 Move 4958 | 1993 471 899 966 560 69 Hop . | . . . . . . Pick Up 33 | 10 2 3 8 6 4 Fast Attach 41 | 8 . 3 20 8 2 Attach 12 | . 1 2 3 2 4 Detach 16 | . . . 10 2 4 Swap 23 | 3 3 7 1 7 2 Drop 39 | 4 1 3 10 14 7 Fire 165 | 7 15 25 78 34 6 Melee . | . . . . . . Ram 2 | 1 . 1 . . . Kick 3 | . . 2 1 . . Crush 11 | 2 . . 3 6 . Escape Stasis 35 | . . . . . 35 Rewire 2 | . . . . 2 . Trap . | . . . . . . Miscellaneous . | . . . . . . Route ------- -11/Scrapyard -10/Materials (discovered 2 exits: *Min / [*Sub]) -10/Mines (discovered 2 exits: *Mat x2) -9/Materials (discovered 7 exits: [*Mat x3] / *Min x2 / *Sto x2) -9/Storage (discovered 3 exits: [*Mat] / Rec / Gar) -9/Garrison History --------- Turn | Location | Event 14 | -11/Scrapyard | Discovered new exit (range 16) 5396 | -11/Scrapyard | Assembled infested the area 11335 | -11/Scrapyard | Entered Materials 11336 | -10/Materials | Build established: Mutant 11550 | -10/Materials | Discovered new exit (range 13) 11617 | -10/Materials | Identified exit to Mines 11724 | -10/Materials | Discovered new exit (range 9) 11846 | -10/Materials | Entered Mines 11847 | -10/Mines | Learned location of Storage (-9) 11886 | -10/Mines | Discovered new exit (range 16) 11954 | -10/Mines | Learned Materials emergency access door positions 12041 | -10/Mines | Learned location of Mines (-9) 12041 | -10/Mines | Discovered new exit (range 8) 12153 | -10/Mines | Assembled infested the area 12158 | -10/Mines | Assisted by a Guerilla fighting off Assembled 12274 | -10/Mines | Destroyed 11 combat bots 12308 | -10/Mines | Build established: Scavenger-Mutant 12510 | -10/Mines | Core integrity fell below 50% 12538 | -10/Mines | Lost 3 parts (1n2w) 12813 | -10/Mines | Build established: Mutant 12870 | -10/Mines | Entered Materials 12870 | -9/Materials | Evolved 2 slots: Utility x2 12955 | -9/Materials | Discovered new exit (range 8) 13283 | -9/Materials | Discovered new exit (range 13) 13576 | -9/Materials | Build established: Scavenger-Mutant 13654 | -9/Materials | Discovered new exit (range 16) 13748 | -9/Materials | Discovered new exit (range 13) 13939 | -9/Materials | Discovered new exit (range 12) 14132 | -9/Materials | Discovered new exit (range 5) 14180 | -9/Materials | Build established: Mutant 14649 | -9/Materials | Core integrity fell below 50% 15155 | -9/Materials | Identified exit to Mines 15155 | -9/Materials | Identified exit to Storage 15238 | -9/Materials | Entered Storage 15758 | -9/Storage | Identified exit to Recycling 15771 | -9/Storage | Garrison activated, responded to threat 15818 | -9/Storage | Core integrity fell below 20% 15927 | -9/Storage | Destroyed 10 combat bots 16025 | -9/Storage | Assisted by bots powering up and referring to "LRC-V3" 16062 | -9/Storage | Discovered new exit (range 13) 16311 | -9/Storage | Build established: Commander-Mutant 16435 | -9/Storage | Garrison activated, responded to threat 16513 | -9/Storage | Lost 8 allies 16657 | -9/Storage | Identified exit to Garrison 16660 | -9/Storage | Entered Garrison 16706 | -9/Garrison | Triggered checkpoint 16780 | -9/Garrison | Triggered checkpoint 16780 | -9/Garrison | Build established: Mutant 16788 | -9/Garrison | Triggered checkpoint 16788 | -9/Garrison | Destroyed by G-34 Mercenary with Small Laser Last Messages --------------- 16759_ Field strength at 72. 16760_ Field strength at 65. 16761_ Field strength at 58. 16762_ Field strength at 51. 16763_ Field strength at 44. 16764_ Field strength at 37. 16765_ Field strength at 30. 16774_ RBM99 &LZA,U4VAN9UU% 16782_ Knocked back. 16783_ C-30 ARC bursts open, deploying its payload. 16783_ G-47 Trooper unfolds itself. 16783_ G-34 Mercenary unfolds itself. 16786_ Stasis field depleted. 16788_ Beams of light sweep through the air. An alarm sounds. 16788_ C-30 ARC bursts open, deploying its payload. 16788_ G-47 Trooper unfolds itself. 16788_ G-34 Mercenary unfolds itself. Map ----- +----------------------------------------------------+ | ?????????????????????????????????????????????????? | | ?????????????????????????????????????????????????? | | ?????????????????????????????????????????????????? | | ?????????????????????????????????????????????????? | | ?????????????????????????????????????????????????? | | ?????????????????????????????????????????????????? | | ?????????????????????????????????????????????????? | | ?????????????????????????????????????????????????? | | ?????????????????????????????????????????????????? | | ????????????????????????????? ?????????????????? | | ????????????????????????????# #????????????????? | | ??????????????????????#""""## #????????????????? | | ?????????????????? ?? #????????????????? | | ?????????????????# ? " #????????????????? | | ?????????????????# ? "%" #????????????????? | | ?????????????????# ?# ##" #????????????????? | | ?????????????????# ## ## ###??????????????? | | ?????????????????" #??????????????? | | ?????????????????" #??????????????? | | ??????????????????? C#??????????????? | | ?????????????????"??? s C???????????????? | | ?????????????????# ??# ## #????????????????? | | ?????????????????# ## ##^ ^###########??????? | | ?????????????????# / =! #??????? | | ?????????????????# b ^^ =%! #??????? | | ?????????????????# @ ######## #??????? | | ?????????????????## ## g g######??????# #??????? | | ??????????????????????#CCgC#???????????# #??????? | | ??????????????????????######???????????# #??????? | | ???????????????????????????????????????# #??????? | | ???????????????????????????????????????# #??????? | | ???????????????????????????????????????# #??????? | | ???????????????????????????????????????# #??????? | | ???????????????????????????????????????# #??????? | | ???????????????????????????????????????# #??????? | | ???????????????????????????????????????# #??????? | | ???????????????????????????????????????# #??????? | | ???????????????????????????????????????# #??????? | | ???????????????????????????????????????# #??????? | | ???????????????????????????????????????# #??????? | | ???????????????????????????????????##??# #??????? | | ???????????????????????????????????# ??# #??????? | | ???????????????????????????????????# ?# #??????? | | ???????????????????????????????????# ## ######## | | ???????????????????????????????????# ! | | ???????????????????????????????????# | | ?????????????????????????????????# ############ | | ?????????????????????????????????# ???????????? | | ?????????????????????????????????# ???????????? | | ?????????????????????????????????# ???????????? | +----------------------------------------------------+ Best States ------------- Heat Dissipation 42 Energy Generation 14 Energy Capacity 280 Matter Stores 450 Matter Capacity 450 Sight Range 16 Terrain Scan Range 16 Terrain Scan Density 10 ECM Strength 1 Armor Coverage 150 Core Shielding 20 Evasion (%) 55 Recoil Reduction 2 Item Schematics ----------------- None Robot Schematics ------------------ None Fabricated ------------ Nothing Alien Tech Used ----------------- None Achievements -------------- Curiosity Killed The Cat Challenges ------------ None Game ------ Seed TowerMetafiberBox Manual? 0 Play Time 00:54:10 Cumulative 38.4 hours Start 2024.11.28 @ 21:24:31 End 2024.11.28 @ 22:52:47 Sessions 3 Manual Loads 0 Difficulty Rogue Special Mode None Game No. 48 Rogue 48 Adventurer 0 Explorer 0 Win Type - Total 1 Types 1/0/0/0/0/0/0/0/0 Lore% 16 Gallery% 30 Achievement% 30 Wizard Run 0 Options --------- Layout 2 ASCII 0 Keyboard 1 Movement Arrows Keybinds 0 Fullscreen 1 Font 24/Proggy Map View 50x44 Zoom Use 0% Tactical HUD 1 Map Filters NONE Filters NONE Steam 1 RUN: e441d713-4a6d-407e-8be0-1a30e1961396